Workbook

Sheet Find c
B1: The Mean Value Theorem
B3: This graphing utility lets you investigate
C4: the Mean Value Theorem:
B5: There is a number c between x = a and x = b
D6: where
B7: f '(c ) = [ f(b) - f(a) ]/(b - a)
A9: Enter the function in terms of x: f(x) = | F9: x^4-3*x^2+6*x-2
A11: Now enter the interval for x:
C12: xMin = | D12: -4
C13: xMax = | D13: 4
A19: Click each item below for suggestions and investigations | M19: The graph of the function y = | P19: =F9 -> x^4-3*x^2+6*x-2
B20: Item 1
B21: Item 2 | L21: The slope of the secant line is | P21: =Sheet3!F6 -> 5.769
B22: Item 3
L23: Move the green tangent line until it is parallel to the red secant line
A26: To access/download all the DIGMath Apps for Calculus | O26: 41 | P26: =D12+O26*(D13-D12)/200 -> -2.36
A27: Click this link: | C27: DIGMath for Calculus
N28: The point of tangency is c = | Q28: =P26 -> -2.36
A29: Created by: Sheldon P. Gordon
A30: Farmingdale State College | M30: The slope of the tangent line at x = c is | Q30: =LOOKUP(Q28,Sheet3!A3:A1002,Sheet3!C3:C1002) -> -32.27390431
A31: Development of this module was supported by the
A32: NSF's Division of Undergraduate Education
A33: under grants DUE-0310123 and DUE-0442160.

Sheet Slide line
B1: The Mean Value Theorem
B3: This graphing utility lets you investigate
C4: the Mean Value Theorem:
B5: There is a number c between x = a and x = b
D6: where
B7: f '( c ) = [ f(b) - f(a) ] / (b - a)
A10: First move the line parallel to the secant line
B11: to find where it is tangent to the curve
A13: Then find the point x = c on the curve.
I17: The graph of the function y | L17: =x^4-5*x^2+6*x+1
A19: Click each item below for suggestions and investigations | H19: First move the green line until it is tangent to the curve
A20: Item 1
A21: Item 2 | L21: 13 | M21: =Sheet3!F13+L21*(Sheet3!F14-Sheet3!F13)/100 -> 18.57062043
A22: Item 3
A24: To access/download all the DIGMath Apps for Calculus | H24: Then locate the point of tangency c = | L24: =M26 -> 1.6
A25: Click this link: | C25: DIGMath for Calculus
L26: 70 | M26: ='Find c'!D12+L26*('Find c'!D13-'Find c'!D12)/100 -> 1.6
A27: Created by: Sheldon P. Gordon
A28: Farmingdale StateCollege
A29: Development of this module was supported by the
A30: NSF's Division of Undergraduate Education
A31: under grants DUE-0310123 and DUE-0442160.

Sheet Sheet3
A1: x | B1: f(x) | C1: slope | E1: move line | F1: xl= | G1: =IF('Find c'!$P$26<'Find c'!D12+150*Sheet3!G11,'Find c'!D12,'Find c'!P$26-150*Sheet3!G11) -> -3.558801199 | H1: =LOOKUP('Find c'!P26,Sheet3!A3:A1002,Sheet3!B3:B1002)+LOOKUP('Find c'!P26,Sheet3!A3:A1002,Sheet3!C3:C1002)*(G1-'Find c'!P26) -> 36.89483183 | I1: "=yl
B2: ='Find c'!#REF! ->  | F2: xr= | G2: =IF('Find c'!$P$26>'Find c'!D13-150*Sheet3!G11,'Find c'!D13,'Find c'!P$26+150*Sheet3!G11) -> -1.161198801 | H2: =LOOKUP('Find c'!P26,Sheet3!A3:A1003,Sheet3!B3:B1003)+LOOKUP('Find c'!P26,Sheet3!A3:A1003,Sheet3!C3:C1003)*(G2-'Find c'!P26) -> -40.48515852 | I2: "=yR | L2: sorted values by y
A3: ='Find c'!D12 -> -4.00 | B3: =x^4-3*x^2+6*x-2 -> 182.0000 | C3: =(B4-B3)/Sheet3!$G$11 -> -225.2577647 | L3: -1.826173826 | M3: -15.50996684
A4: =A3+Sheet3!G$11 -> -3.99 | B4: 180.1997 | C4: =(B5-B4)/Sheet3!$G$11 -> -223.7773758 | E4: secant line | F4: xL = | G4: =A3 -> -4.00 | H4: =B3 -> 182 | L4: -1.818181818 | M4: -15.50980124
A5: =A4+Sheet3!G$11 -> -3.98 | B5: 178.4113 | C5: =(B6-B5)/Sheet3!$G$11 -> -222.3031002 | F5: xR = | G5: =A1003 -> 3.99 | H5: =B1003 -> 228.103834 | L5: -1.834165834 | M5: -15.50821506
A6: =A5+Sheet3!G$11 -> -3.98 | B6: 176.6347 | C6: =(B7-B6)/Sheet3!$G$11 -> -220.8349258 | E6: slope = | F6: =(H5-H4)/(G5-G4) -> 5.768742235 | L6: -1.81018981 | M6: -15.50774059
A7: =A6+Sheet3!G$11 -> -3.97 | B7: 174.8697 | C7: =(B8-B7)/Sheet3!$G$11 -> -219.3728402 | L7: -1.842157842 | M7: -15.50452346
A8: =A7+Sheet3!G$11 -> -3.96 | B8: 173.1165 | C8: =(B9-B8)/Sheet3!$G$11 -> -217.9168312 | E8: Point display | G8: ='Slide line'!L24 -> 1.6 | H8: =LOOKUP(G8,A3:A1003,B3:B1003) -> 6.402466835 | L8: -1.802197802 | M8: -15.5038071
A9: =A8+Sheet3!G$11 -> -3.95 | B9: 171.3749 | C9: =(B10-B9)/Sheet3!$G$11 -> -216.4668866 | G9: ='Slide line'!L24 -> 1.6 | H9: =LOOKUP(G9,A3:A1003,B3:B1003) -> 6.402466835 | L9: -1.85014985 | M9: -15.49886955
A10: =A9+Sheet3!G$11 -> -3.94 | B10: 169.6449 | C10: =(B11-B10)/Sheet3!$G$11 -> -215.022994 | L10: -1.794205794 | M10: -15.4980229
A11: =A10+Sheet3!G$11 -> -3.94 | B11: 167.9265 | C11: =(B12-B11)/Sheet3!$G$11 -> -213.5851413 | F11: delta x = | G11: =('Find c'!D13-'Find c'!D12)/1001 -> 0.007992007992 | L11: -1.858141858 | M11: -15.49123069
A12: =A11+Sheet3!G$11 -> -3.93 | B12: 166.2195 | C12: =(B13-B12)/Sheet3!$G$11 -> -212.1533162 | L12: -1.786213786 | M12: -15.49041003
A13: =A12+Sheet3!G$11 -> -3.92 | B13: 164.5239 | C13: =(B14-B13)/Sheet3!$G$11 -> -210.7275064 | E13: Fmin = | F13: =MIN(B3:B1003) -> -12.7389 | G13: =LOOKUP(F13,M3:M1003,L3:L1003) -> -1.338661339 | H13: =x | L13: -1.866133866 | M13: -15.48158418
A14: =A13+Sheet3!G$11 -> -3.91 | B14: 162.8398 | C14: =(B15-B14)/Sheet3!$G$11 -> -209.3076998 | E14: Fmax = | F14: =MAX(B3:B1003) -> 228.103834 | G14: =LOOKUP(F14,M3:M1003,L3:L1003) -> 3.992007992 | H14: =x | L14: -1.778221778 | M14: -15.48099042
A15: =A14+Sheet3!G$11 -> -3.90 | B15: 161.1670 | C15: =(B16-B15)/Sheet3!$G$11 -> -207.8938839 | E15: F value = | F15: ='Slide line'!M21 -> 18.57062043 | L15: -1.874125874 | M15: -15.46990719
A16: =A15+Sheet3!G$11 -> -3.90 | B16: 159.5055 | C16: =(B17-B16)/Sheet3!$G$11 -> -206.4860467 | E16: x Mid = | F16: =(a+b)/2 -> -0.003996003996 | L16: -1.77022977 | M16: -15.4697859
A17: =A16+Sheet3!G$11 -> -3.89 | B17: 157.8553 | C17: =(B18-B17)/Sheet3!$G$11 -> -205.0841758 | L17: -1.762237762 | M17: -15.45681821
A18: =A17+Sheet3!G$11 -> -3.88 | B18: 156.2163 | C18: =(B19-B18)/Sheet3!$G$11 -> -203.688259 | E18: Sheet 2 line segment: | L18: -1.882117882 | M18: -15.45617682
A19: =A18+Sheet3!G$11 -> -3.87 | B19: 154.5884 | C19: =(B20-B19)/Sheet3!$G$11 -> -202.298284 | F19: xL= | G19: =IF(m=0,G$4,(IF(AND(m>0,J19<Fmin),F$16+F$28,(IF(AND(m<0,J19>Fmax),F$16+xL,a))))) -> -4 | H19: =Fvalue+m*(xL-xMid) -> -4.481296592 | I19: "=yL | J19: =IF(m=0,Fvalue,IF(m>0,Fmin,Fmax)) -> -12.73894022 | L19: -1.754245754 | M19: -15.44210898
A20: =A19+Sheet3!G$11 -> -3.86 | B20: 152.9716 | C20: =(B21-B20)/Sheet3!$G$11 -> -200.9142386 | F20: xR= | G20: =IF(m=0,G$5,(IF(AND(m>0,J20>Fmax),F$16+F$29,(IF(AND(F$6<0,J20<Fmin),F$16+F$28,b))))) -> 3.992007992 | H20: =Fvalue+m*(xR-xMid) -> 41.62253746 | I20: "=yR | J20: =IF(m=0,F16,IF(m>0,Fmax,Fvalue)) -> 228.103834 | L20: -1.89010989 | M20: -15.44037006
A21: =A20+Sheet3!G$11 -> -3.86 | B21: 151.3659 | C21: =(B22-B21)/Sheet3!$G$11 -> -199.5361106 | L21: -1.746253746 | M21: -15.42567976
A22: =A21+Sheet3!G$11 -> -3.85 | B22: 149.7712 | C22: =(B23-B22)/Sheet3!$G$11 -> -198.1638876 | G22: fix xL and xR | L22: -1.898101898 | M22: -15.42246381
A23: =A22+Sheet3!G$11 -> -3.84 | B23: 148.1875 | C23: =(B24-B23)/Sheet3!$G$11 -> -196.7975575 | L23: -1.738261738 | M23: -15.40755199
A24: =A23+Sheet3!G$11 -> -3.83 | B24: 146.6147 | C24: =(B25-B24)/Sheet3!$G$11 -> -195.4371079 | L24: -1.906093906 | M24: -15.40243484
A25: =A24+Sheet3!G$11 -> -3.82 | B25: 145.0527 | C25: =(B26-B25)/Sheet3!$G$11 -> -194.0825267 | L25: -1.73026973 | M25: -15.38774701
A26: =A25+Sheet3!G$11 -> -3.82 | B26: 143.5016 | C26: =(B27-B26)/Sheet3!$G$11 -> -192.7338015 | L26: -1.914085914 | M26: -15.38025987
A27: =A26+Sheet3!G$11 -> -3.81 | B27: 141.9613 | C27: =(B28-B27)/Sheet3!$G$11 -> -191.3909202 | L27: -1.722277722 | M27: -15.36628608
A28: =A27+Sheet3!G$11 -> -3.80 | B28: 140.4317 | C28: =(B29-B28)/Sheet3!$G$11 -> -190.0538704 | E28: Ratio1= | F28: =(Fmin-'Slide line'!M21)/m -> -5.427450106 | L28: -1.922077922 | M28: -15.3559155
A29: =A28+Sheet3!G$11 -> -3.79 | B29: 138.9128 | C29: =(B30-B29)/Sheet3!$G$11 -> -188.72264 | E29: Ratio2= | F29: =(Fmax-'Slide line'!M21)/m -> 36.32216609 | L29: -1.714285714 | M29: -15.34319034
A30: =A29+Sheet3!G$11 -> -3.78 | B30: 137.4045 | C30: =(B31-B30)/Sheet3!$G$11 -> -187.3972167 | L30: -1.93006993 | M30: -15.32937821
A31: =A30+Sheet3!G$11 -> -3.78 | B31: 135.9068 | C31: =(B32-B31)/Sheet3!$G$11 -> -186.0775881 | L31: -1.706293706 | M31: -15.31848084
A32: =A31+Sheet3!G$11 -> -3.77 | B32: 134.4197 | C32: =(B33-B32)/Sheet3!$G$11 -> -184.7637422 | L32: -1.938061938 | M32: -15.30062442
A33: =A32+Sheet3!G$11 -> -3.76 | B33: 132.9431 | C33: =(B34-B33)/Sheet3!$G$11 -> -183.4556665 | L33: -1.698301698 | M33: -15.29217853
A34: =A33+Sheet3!G$11 -> -3.75 | B34: 131.4769 | C34: =(B35-B34)/Sheet3!$G$11 -> -182.153349 | L34: -1.946053946 | M34: -15.26963044
A35: =A34+Sheet3!G$11 -> -3.74 | B35: 130.0211 | C35: =(B36-B35)/Sheet3!$G$11 -> -180.8567772 | L35: -1.69030969 | M35: -15.26430427
A36: =A35+Sheet3!G$11 -> -3.74 | B36: 128.5757 | C36: =(B37-B36)/Sheet3!$G$11 -> -179.565939 | L36: -1.954045954 | M36: -15.23637246
A37: =A36+Sheet3!G$11 -> -3.73 | B37: 127.1406 | C37: =(B38-B37)/Sheet3!$G$11 -> -178.2808221 | L37: -1.682317682 | M37: -15.23487882
A38: =A37+Sheet3!G$11 -> -3.72 | B38: 125.7158 | C38: =(B39-B38)/Sheet3!$G$11 -> -177.0014143 | L38: -1.674325674 | M38: -15.20392283
A39: =A38+Sheet3!G$11 -> -3.71 | B39: 124.3012 | C39: =(B40-B39)/Sheet3!$G$11 -> -175.7277033 | L39: -1.962037962 | M39: -15.2008266
A40: =A39+Sheet3!G$11 -> -3.70 | B40: 122.8968 | C40: =(B41-B40)/Sheet3!$G$11 -> -174.4596769 | L40: -1.666333666 | M40: -15.17145688
A41: =A40+Sheet3!G$11 -> -3.70 | B41: 121.5025 | C41: =(B42-B41)/Sheet3!$G$11 -> -173.1973228 | L41: -1.97002997 | M41: -15.16296888
A42: =A41+Sheet3!G$11 -> -3.69 | B42: 120.1183 | C42: =(B43-B42)/Sheet3!$G$11 -> -171.9406287 | L42: -1.658341658 | M42: -15.13750141
A43: =A42+Sheet3!G$11 -> -3.68 | B43: 118.7442 | C43: =(B44-B43)/Sheet3!$G$11 -> -170.6895824 | L43: -1.978021978 | M43: -15.12277519
A44: =A43+Sheet3!G$11 -> -3.67 | B44: 117.3800 | C44: =(B45-B44)/Sheet3!$G$11 -> -169.4441717 | L44: -1.65034965 | M44: -15.1020768
A45: =A44+Sheet3!G$11 -> -3.66 | B45: 116.0258 | C45: =(B46-B45)/Sheet3!$G$11 -> -168.2043843 | L45: -1.986013986 | M45: -15.08022137
A46: =A45+Sheet3!G$11 -> -3.66 | B46: 114.6815 | C46: =(B47-B46)/Sheet3!$G$11 -> -166.970208 | L46: -1.642357642 | M46: -15.06520332
A47: =A46+Sheet3!G$11 -> -3.65 | B47: 113.3471 | C47: =(B48-B47)/Sheet3!$G$11 -> -165.7416305 | L47: -1.994005994 | M47: -15.03528312
A48: =A47+Sheet3!G$11 -> -3.64 | B48: 112.0225 | C48: =(B49-B48)/Sheet3!$G$11 -> -164.5186395 | L48: -1.634365634 | M48: -15.02690113
A49: =A48+Sheet3!G$11 -> -3.63 | B49: 110.7076 | C49: =(B50-B49)/Sheet3!$G$11 -> -163.3012228 | L49: -2.001998002 | M49: -14.98793608
A50: =A49+Sheet3!G$11 -> -3.62 | B50: 109.4025 | C50: =(B51-B50)/Sheet3!$G$11 -> -162.0893681 | L50: -1.626373626 | M50: -14.98719031
A51: =A50+Sheet3!G$11 -> -3.62 | B51: 108.1071 | C51: =(B52-B51)/Sheet3!$G$11 -> -160.8830633 | L51: -1.618381618 | M51: -14.94609083
A52: =A51+Sheet3!G$11 -> -3.61 | B52: 106.8213 | C52: =(B53-B52)/Sheet3!$G$11 -> -159.682296 | L52: -2.00999001 | M52: -14.93815575
A53: =A52+Sheet3!G$11 -> -3.60 | B53: 105.5452 | C53: =(B54-B53)/Sheet3!$G$11 -> -158.487054 | L53: -1.61038961 | M53: -14.90362256
A54: =A53+Sheet3!G$11 -> -3.59 | B54: 104.2785 | C54: =(B55-B54)/Sheet3!$G$11 -> -157.2973251 | L54: -2.017982018 | M54: -14.88591756
A55: =A54+Sheet3!G$11 -> -3.58 | B55: 103.0214 | C55: =(B56-B55)/Sheet3!$G$11 -> -156.1130969 | L55: -1.602397602 | M55: -14.85980529
A56: =A55+Sheet3!G$11 -> -3.58 | B56: 101.7737 | C56: =(B57-B56)/Sheet3!$G$11 -> -154.9343573 | L56: -2.025974026 | M56: -14.83119685
A57: =A56+Sheet3!G$11 -> -3.57 | B57: 100.5355 | C57: =(B58-B57)/Sheet3!$G$11 -> -153.7610939 | L57: -1.594405594 | M57: -14.8146587
A58: =A57+Sheet3!G$11 -> -3.56 | B58: 99.3067 | C58: =(B59-B58)/Sheet3!$G$11 -> -152.5932947 | L58: -2.033966034 | M58: -14.77396884
A59: =A58+Sheet3!G$11 -> -3.55 | B59: 98.0871 | C59: =(B60-B59)/Sheet3!$G$11 -> -151.4309472 | L59: -1.586413586 | M59: -14.76820236
A60: =A59+Sheet3!G$11 -> -3.54 | B60: 96.8769 | C60: =(B61-B60)/Sheet3!$G$11 -> -150.2740392 | L60: -1.578421578 | M60: -14.72045576
A61: =A60+Sheet3!G$11 -> -3.54 | B61: 95.6759 | C61: =(B62-B61)/Sheet3!$G$11 -> -149.1225585 | L61: -2.041958042 | M61: -14.71420865
A62: =A61+Sheet3!G$11 -> -3.53 | B62: 94.4841 | C62: =(B63-B62)/Sheet3!$G$11 -> -147.9764929 | L62: -1.57042957 | M62: -14.67143829
A63: =A62+Sheet3!G$11 -> -3.52 | B63: 93.3015 | C63: =(B64-B63)/Sheet3!$G$11 -> -146.83583 | L63: -2.04995005 | M63: -14.65189133
A64: =A63+Sheet3!G$11 -> -3.51 | B64: 92.1280 | C64: =(B65-B64)/Sheet3!$G$11 -> -145.7005577 | L64: -1.562437562 | M64: -14.62116924
A65: =A64+Sheet3!G$11 -> -3.50 | B65: 90.9635 | C65: =(B66-B65)/Sheet3!$G$11 -> -144.5706636 | L65: -2.057942058 | M65: -14.5869918
A66: =A65+Sheet3!G$11 -> -3.50 | B66: 89.8081 | C66: =(B67-B66)/Sheet3!$G$11 -> -143.4461356 | L66: -1.554445554 | M66: -14.5696678
A67: =A66+Sheet3!G$11 -> -3.49 | B67: =x^4-3*x^2+6*x-2 -> 88.6617 | C67: =(B68-B67)/Sheet3!$G$11 -> -142.3269614 | L67: -2.065934066 | M67: -14.5194849
A68: =A67+Sheet3!G$11 -> -3.48 | B68: 87.5242 | C68: =(B69-B68)/Sheet3!$G$11 -> -141.2131287 | L68: -1.546453546 | M68: -14.51695306
A69: =A68+Sheet3!G$11 -> -3.47 | B69: 86.3956 | C69: =(B70-B69)/Sheet3!$G$11 -> -140.1046252 | L69: -1.538461538 | M69: -14.46304401
A70: =A69+Sheet3!G$11 -> -3.46 | B70: 85.2759 | C70: =(B71-B70)/Sheet3!$G$11 -> -139.0014388 | L70: -2.073926074 | M70: -14.44934538
A71: =A70+Sheet3!G$11 -> -3.46 | B71: 84.1650 | C71: =(B72-B71)/Sheet3!$G$11 -> -137.9035572 | L71: -1.53046953 | M71: -14.40795956
A72: =A71+Sheet3!G$11 -> -3.45 | B72: 83.0629 | C72: =(B73-B72)/Sheet3!$G$11 -> -136.8109681 | L72: -2.081918082 | M72: -14.37654787
A73: =A72+Sheet3!G$11 -> -3.44 | B73: 81.9695 | C73: =(B74-B73)/Sheet3!$G$11 -> -135.7236592 | L73: -1.522477522 | M73: -14.35171849
A74: =A73+Sheet3!G$11 -> -3.43 | B74: 80.8848 | C74: =(B75-B74)/Sheet3!$G$11 -> -134.6416184 | L74: -2.08991009 | M74: -14.30106691
A75: =A74+Sheet3!G$11 -> -3.42 | B75: 79.8087 | C75: =(B76-B75)/Sheet3!$G$11 -> -133.5648334 | L75: -1.514485514 | M75: -14.29433952
A76: =A75+Sheet3!G$11 -> -3.42 | B76: 78.7413 | C76: =(B77-B76)/Sheet3!$G$11 -> -132.4932918 | L76: -1.506493506 | M76: -14.23584125
A77: =A76+Sheet3!G$11 -> -3.41 | B77: 77.6824 | C77: =(B78-B77)/Sheet3!$G$11 -> -131.4269815 | L77: -2.097902098 | M77: -14.22287696
A78: =A77+Sheet3!G$11 -> -3.40 | B78: 76.6320 | C78: =(B79-B78)/Sheet3!$G$11 -> -130.3658903 | L78: -1.498501499 | M78: -14.17624217
A79: =A78+Sheet3!G$11 -> -3.39 | B79: 75.5901 | C79: =(B80-B79)/Sheet3!$G$11 -> -129.3100058 | L79: -2.105894106 | M79: -14.14195235
A80: =A79+Sheet3!G$11 -> -3.38 | B80: 74.5567 | C80: =(B81-B80)/Sheet3!$G$11 -> -128.2593158 | L80: -1.490509491 | M80: -14.11556071
A81: =A80+Sheet3!G$11 -> -3.38 | B81: 73.5317 | C81: =(B82-B81)/Sheet3!$G$11 -> -127.2138081 | L81: -2.113886114 | M81: -14.05826734
A82: =A81+Sheet3!G$11 -> -3.37 | B82: 72.5150 | C82: =(B83-B82)/Sheet3!$G$11 -> -126.1734704 | L82: -1.482517483 | M82: -14.05381516
A83: =A82+Sheet3!G$11 -> -3.36 | B83: 71.5066 | C83: =(B84-B83)/Sheet3!$G$11 -> -125.1382905 | L83: -1.474525475 | M83: -13.99102374
A84: =A83+Sheet3!G$11 -> -3.35 | B84: 70.5065 | C84: =(B85-B84)/Sheet3!$G$11 -> -124.108256 | L84: -2.121878122 | M84: -13.97179607
A85: =A84+Sheet3!G$11 -> -3.34 | B85: 69.5146 | C85: =(B86-B85)/Sheet3!$G$11 -> -123.0833548 | L85: -1.466533467 | M85: -13.92720457
A86: =A85+Sheet3!G$11 -> -3.34 | B86: 68.5309 | C86: =(B87-B86)/Sheet3!$G$11 -> -122.0635747 | L86: -2.12987013 | M86: -13.88251261
A87: =A86+Sheet3!G$11 -> -3.33 | B87: 67.5554 | C87: =(B88-B87)/Sheet3!$G$11 -> -121.0489032 | L87: -1.458541459 | M87: -13.86237565
A88: =A87+Sheet3!G$11 -> -3.32 | B88: 66.5880 | C88: =(B89-B88)/Sheet3!$G$11 -> -120.0393283 | L88: -1.450549451 | M88: -13.79655491
A89: =A88+Sheet3!G$11 -> -3.31 | B89: 65.6286 | C89: =(B90-B89)/Sheet3!$G$11 -> -119.0348377 | L89: -2.137862138 | M89: -13.79039091
A90: =A89+Sheet3!G$11 -> -3.30 | B90: 64.6773 | C90: =(B91-B90)/Sheet3!$G$11 -> -118.035419 | L90: -1.442557443 | M90: -13.72976017
A91: =A90+Sheet3!G$11 -> -3.30 | B91: 63.7339 | C91: =(B92-B91)/Sheet3!$G$11 -> -117.0410601 | L91: -2.145854146 | M91: -13.69540481
A92: =A91+Sheet3!G$11 -> -3.29 | B92: 62.7985 | C92: =(B93-B92)/Sheet3!$G$11 -> -116.0517487 | L92: -1.434565435 | M92: -13.66200915
A93: =A92+Sheet3!G$11 -> -3.28 | B93: 61.8711 | C93: =(B94-B93)/Sheet3!$G$11 -> -115.0674725 | L93: -2.153846154 | M93: -13.5975281
A94: =A93+Sheet3!G$11 -> -3.27 | B94: 60.9514 | C94: =(B95-B94)/Sheet3!$G$11 -> -114.0882193 | L94: -1.426573427 | M94: -13.59331947
A95: =A94+Sheet3!G$11 -> -3.26 | B95: 60.0396 | C95: =(B96-B95)/Sheet3!$G$11 -> -113.1139769 | L95: -1.418581419 | M95: -13.52370866
A96: =A95+Sheet3!G$11 -> -3.26 | B96: 59.1356 | C96: =(B97-B96)/Sheet3!$G$11 -> -112.144733 | L96: -2.161838162 | M96: -13.49673442
A97: =A96+Sheet3!G$11 -> -3.25 | B97: 58.2394 | C97: =(B98-B97)/Sheet3!$G$11 -> -111.1804753 | L97: -1.410589411 | M97: -13.45319414
A98: =A97+Sheet3!G$11 -> -3.24 | B98: 57.3508 | C98: =(B99-B98)/Sheet3!$G$11 -> -110.2211916 | L98: -2.16983017 | M98: -13.39299733
A99: =A98+Sheet3!G$11 -> -3.23 | B99: 56.4699 | C99: =(B100-B99)/Sheet3!$G$11 -> -109.2668696 | L99: -1.402597403 | M99: -13.38179326
A100: =A99+Sheet3!G$11 -> -3.22 | B100: 55.5967 | C100: =(B101-B100)/Sheet3!$G$11 -> -108.3174971 | L100: -1.394605395 | M100: -13.30952323
A101: =A100+Sheet3!G$11 -> -3.22 | B101: 54.7310 | C101: =(B102-B101)/Sheet3!$G$11 -> -107.3730619 | L101: -2.177822178 | M101: -13.28629032
A102: =A101+Sheet3!G$11 -> -3.21 | B102: 53.8729 | C102: =(B103-B102)/Sheet3!$G$11 -> -106.4335516 | L102: -1.386613387 | M102: -13.2364012
A103: =A102+Sheet3!G$11 -> -3.20 | B103: 53.0223 | C103: =(B104-B103)/Sheet3!$G$11 -> -105.4989541 | L103: -2.185814186 | M103: -13.17658674
A104: =A103+Sheet3!G$11 -> -3.19 | B104: 52.1791 | C104: =(B105-B104)/Sheet3!$G$11 -> -104.5692571 | L104: -1.378621379 | M104: -13.1624442
A105: =A104+Sheet3!G$11 -> -3.18 | B105: 51.3434 | C105: =(B106-B105)/Sheet3!$G$11 -> -103.6444483 | L105: -1.370629371 | M105: -13.08766917
A106: =A105+Sheet3!G$11 -> -3.18 | B106: 50.5151 | C106: =(B107-B106)/Sheet3!$G$11 -> -102.7245155 | L106: -2.193806194 | M106: -13.06385986
A107: =A106+Sheet3!G$11 -> -3.17 | B107: 49.6941 | C107: =(B108-B107)/Sheet3!$G$11 -> -101.8094464 | L107: -1.362637363 | M107: -13.01209296
A108: =A107+Sheet3!G$11 -> -3.16 | B108: 48.8804 | C108: =(B109-B108)/Sheet3!$G$11 -> -100.8992288 | L108: -2.201798202 | M108: -12.94808285
A109: =A108+Sheet3!G$11 -> -3.15 | B109: 48.0740 | C109: =(B110-B109)/Sheet3!$G$11 -> -99.99385041 | L109: -1.354645355 | M109: -12.93573229
A110: =A109+Sheet3!G$11 -> -3.14 | B110: 47.2749 | C110: =(B111-B110)/Sheet3!$G$11 -> -99.09329901 | L110: -1.346653347 | M110: -12.85860383
A111: =A110+Sheet3!G$11 -> -3.14 | B111: 46.4829 | C111: =(B112-B111)/Sheet3!$G$11 -> -98.19756233 | L111: -2.20979021 | M111: -12.8292288
A112: =A111+Sheet3!G$11 -> -3.13 | B112: 45.6981 | C112: =(B113-B112)/Sheet3!$G$11 -> -97.30662812 | L112: -1.338661339 | M112: -12.78072411
A113: =A112+Sheet3!G$11 -> -3.12 | B113: 44.9205 | C113: =(B114-B113)/Sheet3!$G$11 -> -96.42048414 | L113: -2.217782218 | M113: -12.70727067
A114: =A113+Sheet3!G$11 -> -3.11 | B114: 44.1499 | C114: =(B115-B114)/Sheet3!$G$11 -> -95.53911813 | L114: -1.330669331 | M114: -12.70210959
A115: =A114+Sheet3!G$11 -> -3.10 | B115: 43.3863 | C115: =(B116-B115)/Sheet3!$G$11 -> -94.66251785 | L115: -1.322677323 | M115: -12.62277661
A116: =A115+Sheet3!G$11 -> -3.10 | B116: 42.6298 | C116: =(B117-B116)/Sheet3!$G$11 -> -93.79067103 | L116: -2.225774226 | M116: -12.58218135
A117: =A116+Sheet3!G$11 -> -3.09 | B117: 41.8802 | C117: =(B118-B117)/Sheet3!$G$11 -> -92.92356543 | L117: -1.314685315 | M117: -12.54274143
A118: =A117+Sheet3!G$11 -> -3.08 | B118: 41.1375 | C118: =(B119-B118)/Sheet3!$G$11 -> -92.06118879 | L118: -1.306693307 | M118: -12.46202021
A119: =A118+Sheet3!G$11 -> -3.07 | B119: 40.4018 | C119: =(B120-B119)/Sheet3!$G$11 -> -91.20352887 | L119: -2.233766234 | M119: -12.45393362
A120: =A119+Sheet3!G$11 -> -3.06 | B120: 39.6729 | C120: =(B121-B120)/Sheet3!$G$11 -> -90.35057342 | L120: -1.298701299 | M120: -12.380629
A121: =A120+Sheet3!G$11 -> -3.06 | B121: 38.9508 | C121: =(B122-B121)/Sheet3!$G$11 -> -89.50231018 | L121: -2.241758242 | M121: -12.32250015
A122: =A121+Sheet3!G$11 -> -3.05 | B122: 38.2355 | C122: =(B123-B122)/Sheet3!$G$11 -> -88.6587269 | L122: -1.290709291 | M122: -12.29858377
A123: =A122+Sheet3!G$11 -> -3.04 | B123: 37.5269 | C123: =(B124-B123)/Sheet3!$G$11 -> -87.81981133 | L123: -1.282717283 | M123: -12.21590037
A124: =A123+Sheet3!G$11 -> -3.03 | B124: 36.8251 | C124: =(B125-B124)/Sheet3!$G$11 -> -86.98555122 | L124: -2.24975025 | M124: -12.18785353
A125: =A124+Sheet3!G$11 -> -3.02 | B125: 36.1299 | C125: =(B126-B125)/Sheet3!$G$11 -> -86.15593433 | L125: -1.274725275 | M125: -12.13259456
A126: =A125+Sheet3!G$11 -> -3.02 | B126: 35.4413 | C126: =(B127-B126)/Sheet3!$G$11 -> -85.33094838 | L126: -2.257742258 | M126: -12.04996625
A127: =A126+Sheet3!G$11 -> -3.01 | B127: 34.7594 | C127: =(B128-B127)/Sheet3!$G$11 -> -84.51058115 | L127: -1.266733267 | M127: -12.04868202
A128: =A127+Sheet3!G$11 -> -3.00 | B128: 34.0840 | C128: =(B129-B128)/Sheet3!$G$11 -> -83.69482036 | L128: -1.258741259 | M128: -11.96417832
A129: =A128+Sheet3!G$11 -> -2.99 | B129: 33.4151 | C129: =(B130-B129)/Sheet3!$G$11 -> -82.88365379 | L129: -2.265734266 | M129: -11.90881071
A130: =A129+Sheet3!G$11 -> -2.99 | B130: 32.7527 | C130: =(B131-B130)/Sheet3!$G$11 -> -82.07706916 | L130: -1.250749251 | M130: -11.87909891
A131: =A130+Sheet3!G$11 -> -2.98 | B131: =x^4-3*x^2+6*x-2 -> 32.0967 | C131: =(B132-B131)/Sheet3!$G$11 -> -81.27505424 | L131: -1.242757243 | M131: -11.79345918
A132: =A131+Sheet3!G$11 -> -2.97 | B132: 31.4472 | C132: =(B133-B132)/Sheet3!$G$11 -> -80.47759676 | L132: -2.273726274 | M132: -11.76435918
A133: =A132+Sheet3!G$11 -> -2.96 | B133: 30.8040 | C133: =(B134-B133)/Sheet3!$G$11 -> -79.68468449 | L133: -1.234765235 | M133: -11.70727439
A134: =A133+Sheet3!G$11 -> -2.95 | B134: 30.1671 | C134: =(B135-B134)/Sheet3!$G$11 -> -78.89630516 | L134: -1.226773227 | M134: -11.62055973
A135: =A134+Sheet3!G$11 -> -2.95 | B135: 29.5366 | C135: =(B136-B135)/Sheet3!$G$11 -> -78.11244653 | L135: -2.281718282 | M135: -11.61658386
A136: =A135+Sheet3!G$11 -> -2.94 | B136: 28.9123 | C136: =(B137-B136)/Sheet3!$G$11 -> -77.33309634 | L136: -1.218781219 | M136: -11.53333028
A137: =A136+Sheet3!G$11 -> -2.93 | B137: 28.2943 | C137: =(B138-B137)/Sheet3!$G$11 -> -76.55824235 | L137: -2.28971029 | M137: -11.46545685
A138: =A137+Sheet3!G$11 -> -2.92 | B138: 27.6824 | C138: =(B139-B138)/Sheet3!$G$11 -> -75.7878723 | L138: -1.210789211 | M138: -11.44560101
A139: =A138+Sheet3!G$11 -> -2.91 | B139: 27.0767 | C139: =(B140-B139)/Sheet3!$G$11 -> -75.02197394 | L139: -1.202797203 | M139: -11.3573868
A140: =A139+Sheet3!G$11 -> -2.91 | B140: 26.4772 | C140: =(B141-B140)/Sheet3!$G$11 -> -74.26053502 | L140: -2.297702298 | M140: -11.31095015
A141: =A140+Sheet3!G$11 -> -2.90 | B141: 25.8837 | C141: =(B142-B141)/Sheet3!$G$11 -> -73.50354329 | L141: -1.194805195 | M141: -11.26870244
A142: =A141+Sheet3!G$11 -> -2.89 | B142: 25.2962 | C142: =(B143-B142)/Sheet3!$G$11 -> -72.7509865 | L142: -1.186813187 | M142: -11.17956262
A143: =A142+Sheet3!G$11 -> -2.88 | B143: 24.7148 | C143: =(B144-B143)/Sheet3!$G$11 -> -72.0028524 | L143: -2.305694306 | M143: -11.15303565
A144: =A143+Sheet3!G$11 -> -2.87 | B144: 24.1393 | C144: =(B145-B144)/Sheet3!$G$11 -> -71.25912873 | L144: -1.178821179 | M144: -11.08998193
A145: =A144+Sheet3!G$11 -> -2.87 | B145: 23.5698 | C145: =(B146-B145)/Sheet3!$G$11 -> -70.51980324 | L145: -1.170829171 | M145: -10.99997486
A146: =A145+Sheet3!G$11 -> -2.86 | B146: 23.0062 | C146: =(B147-B146)/Sheet3!$G$11 -> -69.78486369 | L146: -2.313686314 | M146: -10.99168515
A147: =A146+Sheet3!G$11 -> -2.85 | B147: 22.4485 | C147: =(B148-B147)/Sheet3!$G$11 -> -69.05429782 | L147: -1.162837163 | M147: -10.90955579
A148: =A147+Sheet3!G$11 -> -2.84 | B148: 21.8966 | C148: =(B149-B148)/Sheet3!$G$11 -> -68.32809338 | L148: -2.321678322 | M148: -10.82687037
A149: =A148+Sheet3!G$11 -> -2.83 | B149: 21.3506 | C149: =(B150-B149)/Sheet3!$G$11 -> -67.60623812 | L149: -1.154845155 | M149: -10.81873904
A150: =A149+Sheet3!G$11 -> -2.83 | B150: 20.8103 | C150: =(B151-B150)/Sheet3!$G$11 -> -66.88871979 | L150: -1.146853147 | M150: -10.72753878
A151: =A150+Sheet3!G$11 -> -2.82 | B151: 20.2757 | C151: =(B152-B151)/Sheet3!$G$11 -> -66.17552613 | L151: -2.32967033 | M151: -10.6585629
A152: =A151+Sheet3!G$11 -> -2.81 | B152: 19.7468 | C152: =(B153-B152)/Sheet3!$G$11 -> -65.46664491 | L152: -1.138861139 | M152: -10.63596913
A153: =A152+Sheet3!G$11 -> -2.80 | B153: 19.2236 | C153: =(B154-B153)/Sheet3!$G$11 -> -64.76206385 | L153: -1.130869131 | M153: -10.54404408
A154: =A153+Sheet3!G$11 -> -2.79 | B154: 18.7060 | C154: =(B155-B154)/Sheet3!$G$11 -> -64.06177072 | L154: -2.337662338 | M154: -10.48673425
A155: =A154+Sheet3!G$11 -> -2.79 | B155: 18.1940 | C155: =(B156-B155)/Sheet3!$G$11 -> -63.36575326 | L155: -1.122877123 | M155: -10.45177753
A156: =A155+Sheet3!G$11 -> -2.78 | B156: 17.6876 | C156: =(B157-B156)/Sheet3!$G$11 -> -62.67399922 | L156: -1.114885115 | M156: -10.3591833
A157: =A156+Sheet3!G$11 -> -2.77 | B157: 17.1867 | C157: =(B158-B157)/Sheet3!$G$11 -> -61.98649636 | L157: -2.345654346 | M157: -10.31135583
A158: =A157+Sheet3!G$11 -> -2.76 | B158: 16.6913 | C158: =(B159-B158)/Sheet3!$G$11 -> -61.30323241 | L158: -1.106893107 | M158: -10.26627509
A159: =A158+Sheet3!G$11 -> -2.75 | B159: 16.2014 | C159: =(B160-B159)/Sheet3!$G$11 -> -60.62419512 | L159: -1.098901099 | M159: -10.17306651
A160: =A159+Sheet3!G$11 -> -2.75 | B160: 15.7169 | C160: =(B161-B160)/Sheet3!$G$11 -> -59.94937226 | L160: -2.353646354 | M160: -10.13239896
A161: =A160+Sheet3!G$11 -> -2.74 | B161: 15.2378 | C161: =(B162-B161)/Sheet3!$G$11 -> -59.27875156 | L161: -1.090909091 | M161: -10.07957107
A162: =A161+Sheet3!G$11 -> -2.73 | B162: 14.7640 | C162: =(B163-B162)/Sheet3!$G$11 -> -58.61232077 | L162: -1.082917083 | M162: -9.985802183
A163: =A162+Sheet3!G$11 -> -2.72 | B163: 14.2956 | C163: =(B164-B163)/Sheet3!$G$11 -> -57.95006764 | L163: -2.361638362 | M163: -9.949834844
A164: =A163+Sheet3!G$11 -> -2.71 | B164: 13.8324 | C164: =(B165-B164)/Sheet3!$G$11 -> -57.29197993 | L164: -1.074925075 | M164: -9.89177317
A165: =A164+Sheet3!G$11 -> -2.71 | B165: 13.3746 | C165: =(B166-B165)/Sheet3!$G$11 -> -56.63804538 | L165: -1.066933067 | M165: -9.797497247
A166: =A165+Sheet3!G$11 -> -2.70 | B166: 12.9219 | C166: =(B167-B166)/Sheet3!$G$11 -> -55.98825173 | L166: -2.36963037 | M166: -9.763634603
A167: =A166+Sheet3!G$11 -> -2.69 | B167: 12.4745 | C167: =(B168-B167)/Sheet3!$G$11 -> -55.34258674 | L167: -1.058941059 | M167: -9.702987533
A168: =A167+Sheet3!G$11 -> -2.68 | B168: 12.0322 | C168: =(B169-B168)/Sheet3!$G$11 -> -54.70103816 | L168: -1.050949051 | M168: -9.608257052
A169: =A168+Sheet3!G$11 -> -2.67 | B169: 11.5950 | C169: =(B170-B169)/Sheet3!$G$11 -> -54.06359374 | L169: -2.377622378 | M169: -9.573769254
A170: =A169+Sheet3!G$11 -> -2.67 | B170: 11.1629 | C170: =(B171-B170)/Sheet3!$G$11 -> -53.43024121 | L170: -1.042957043 | M170: -9.513318727
A171: =A170+Sheet3!G$11 -> -2.66 | B171: 10.7359 | C171: =(B172-B171)/Sheet3!$G$11 -> -52.80096835 | L171: -1.034965035 | M171: -9.418185385
A172: =A171+Sheet3!G$11 -> -2.65 | B172: 10.3139 | C172: =(B173-B172)/Sheet3!$G$11 -> -52.17576288 | L172: -2.385614386 | M172: -9.380209717
A173: =A172+Sheet3!G$11 -> -2.64 | B173: 9.8969 | C173: =(B174-B173)/Sheet3!$G$11 -> -51.55461256 | L173: -1.026973027 | M173: -9.322869754
A174: =A173+Sheet3!G$11 -> -2.63 | B174: 9.4849 | C174: =(B175-B174)/Sheet3!$G$11 -> -50.93750514 | L174: -1.018981019 | M174: -9.227384465
A175: =A174+Sheet3!G$11 -> -2.63 | B175: 9.0778 | C175: =(B176-B175)/Sheet3!$G$11 -> -50.32442837 | L175: -2.393606394 | M175: -9.182926815
A176: =A175+Sheet3!G$11 -> -2.62 | B176: 8.6756 | C176: =(B177-B176)/Sheet3!$G$11 -> -49.71537 | L176: -1.010989011 | M176: -9.131742051
A177: =A176+Sheet3!G$11 -> -2.61 | B177: 8.2783 | C177: =(B178-B177)/Sheet3!$G$11 -> -49.11031777 | L177: -1.002997003 | M177: -9.035954946
A178: =A177+Sheet3!G$11 -> -2.60 | B178: 7.8858 | C178: =(B179-B178)/Sheet3!$G$11 -> -48.50925944 | L178: -2.401598402 | M178: -8.981891271
A179: =A178+Sheet3!G$11 -> -2.59 | B179: 7.4981 | C179: =(B180-B179)/Sheet3!$G$11 -> -47.91218275 | L179: -0.995004995 | M179: -8.940035488
A180: =A179+Sheet3!G$11 -> -2.59 | B180: 7.1152 | C180: =(B181-B180)/Sheet3!$G$11 -> -47.31907545 | L180: -0.987012987 | M180: -8.843995915
A181: =A180+Sheet3!G$11 -> -2.58 | B181: 6.7370 | C181: =(B182-B181)/Sheet3!$G$11 -> -46.72992529 | L181: -2.40959041 | M181: -8.777073713
A182: =A181+Sheet3!G$11 -> -2.57 | B182: 6.3635 | C182: =(B183-B182)/Sheet3!$G$11 -> -46.14472003 | L182: -0.979020979 | M182: -8.747848368
A183: =A182+Sheet3!G$11 -> -2.56 | B183: 5.9948 | C183: =(B184-B183)/Sheet3!$G$11 -> -45.5634474 | L183: -0.971028971 | M183: -8.651604891
A184: =A183+Sheet3!G$11 -> -2.55 | B184: 5.6306 | C184: =(B185-B184)/Sheet3!$G$11 -> -44.98609515 | L184: -2.417582418 | M184: -8.568444669
A185: =A184+Sheet3!G$11 -> -2.55 | B185: 5.2711 | C185: =(B186-B185)/Sheet3!$G$11 -> -44.41265105 | L185: -0.963036963 | M185: -8.555277429
A186: =A185+Sheet3!G$11 -> -2.54 | B186: 4.9161 | C186: =(B187-B186)/Sheet3!$G$11 -> -43.84310282 | L186: -0.955044955 | M186: -8.458877829
A187: =A186+Sheet3!G$11 -> -2.53 | B187: 4.5657 | C187: =(B188-B187)/Sheet3!$G$11 -> -43.27743824 | L187: -0.9470529471 | M187: -8.36241784
A188: =A187+Sheet3!G$11 -> -2.52 | B188: 4.2199 | C188: =(B189-B188)/Sheet3!$G$11 -> -42.71564503 | L188: -2.425574426 | M188: -8.355974569
A189: =A188+Sheet3!G$11 -> -2.51 | B189: 3.8785 | C189: =(B190-B189)/Sheet3!$G$11 -> -42.15771095 | L189: -0.9390609391 | M189: -8.265909115
A190: =A189+Sheet3!G$11 -> -2.51 | B190: 3.5416 | C190: =(B191-B190)/Sheet3!$G$11 -> -41.60362376 | L190: -0.9310689311 | M190: -8.169363206
A191: =A190+Sheet3!G$11 -> -2.50 | B191: 3.2091 | C191: =(B192-B191)/Sheet3!$G$11 -> -41.05337119 | L191: -2.433566434 | M191: -8.139633747
A192: =A191+Sheet3!G$11 -> -2.49 | B192: 2.8810 | C192: =(B193-B192)/Sheet3!$G$11 -> -40.506941 | L192: -0.9230769231 | M192: -8.072791569
A193: =A192+Sheet3!G$11 -> -2.48 | B193: 2.5572 | C193: =(B194-B193)/Sheet3!$G$11 -> -39.96432094 | L193: -0.9150849151 | M193: -7.976205562
A194: =A193+Sheet3!G$11 -> -2.47 | B194: 2.2378 | C194: =(B195-B194)/Sheet3!$G$11 -> -39.42549875 | L194: -2.441558442 | M194: -7.919392436
A195: =A194+Sheet3!G$11 -> -2.47 | B195: =x^4-3*x^2+6*x-2 -> 1.9228 | C195: =(B196-B195)/Sheet3!$G$11 -> -38.89046219 | L195: -0.9070929071 | M195: -7.879616445
A196: =A195+Sheet3!G$11 -> -2.46 | B196: 1.6119 | C196: =(B197-B196)/Sheet3!$G$11 -> -38.35919899 | L196: -0.8991008991 | M196: -7.783035381
A197: =A196+Sheet3!G$11 -> -2.45 | B197: 1.3054 | C197: =(B198-B197)/Sheet3!$G$11 -> -37.83169692 | L197: -2.44955045 | M197: -7.695220775
A198: =A197+Sheet3!G$11 -> -2.44 | B198: 1.0030 | C198: =(B199-B198)/Sheet3!$G$11 -> -37.30794372 | L198: -0.8911088911 | M198: -7.686473431
A199: =A198+Sheet3!G$11 -> -2.43 | B199: 0.7049 | C199: =(B200-B199)/Sheet3!$G$11 -> -36.78792714 | L199: -0.8831168831 | M199: -7.589941564
A200: =A199+Sheet3!G$11 -> -2.43 | B200: 0.4108 | C200: =(B201-B200)/Sheet3!$G$11 -> -36.27163493 | L200: -0.8751248751 | M200: -7.493450647
... 804 more rows

Sheet Defining Function
A1: Defining a Function in Excel
A3: Computers have very specific rules you must follow when defining a function. If you don't, the program will either not work at all or will work incorrectly.
A5: 1. The Variable used should be the one named in the instruction, usually x, though sometimes y, t, Q (for an angle theta),
A6: or even x and y (for a function of two variables).
A8: 2. Order of Operations: There five arithmetic operations, addition (+), subtraction (-), multiplication (*), division (/), and exponentiation or power (^). When computers see any of these operation symbols, they perform the indicated steps in a very particular order. First, the power is done. Second, products and quotients of adjacent terms is done. Third, and last, sums and differences of adjacent terms are done. So, in 10*x^3 + 5*x – 7, say with x = 2, the first pass only calculates 2^3 and ignores the multiplications and the sums and differences to calculate 2^3 = 8. The second pass looks at 10*8 + 5*2 – 7 and only does the multiplications, so it produces 80 + 10 - 7. The third pass looks at the +’s and –‘s to produce 80 + 10 – 7 = 83.
A10: 3. Parentheses If you need an operation involving more than two adjacent terms, as in Ö4^3 + 6^2, the computer would take the square root of 4 to produce 2^3 + 6^2; it would then cube the 2 and square the 6 to produce 8 + 36; and finally it would add the 8 and the 36 to get 44. If you actually wanted the square root of the entire expression, you would need to use parentheses, as in Ö(4^3 + 6^2) to tell the computer to do all the operations inside the parentheses before taking the square root. Therefore, it would calculate (4^3 + 6^2) = 64 + 36 = 100 and then take the square root of Ö100 = 10.
A12: 4. Built-In Functions Computer programs have built-in functions for most common algebraic functions. In Excel, the square root function is denoted by SQRT(…), so SQRT(100) = 10. Alternatively, you could enter it as 100^.5 or 100^(1/2); notice that parentheses are needed to have the ½ done first. The common trig functions are SIN (…), COS (…), and TAN (…), where the arguments are automatically interpreted as being in radians, not degrees. The logarithm to the base 10 is represented by LOG (…) and the logarithm with the base e, known as the natural logarithm, is LN (…). The corresponding exponential function with base e is EXP (x). If x is the variable, then each of these would be SQRT (x), SIN (x), COS (x), TAN (x), LOG (x) (for log with base 10 ), LN (x) (for log with base e ), and EXP (x).

Sheet Sheet4
